[Event "Early-Titled-Tuesday-Blitz-October-10-2023"]
[Site "Chess.com"]
[Date "2023.10.10"]
[Round "3"]
[White "chessfatbear"]
[Black "Actuary44"]
[Result "1/2-1/2"]
[WhiteElo "2820"]
[BlackElo "2521"]
[TimeControl "180+1"]
[EndTime "8:30:25 PDT"]
[Termination "Game drawn - insufficient material"]

1. Nf3 {[%clk 0:03:00.9]} 1... d6 {[%clk 0:02:58]} 2. b3 {[%clk 0:03:01.8]} 2...
e5 {[%clk 0:02:57.7]} 3. Bb2 {[%clk 0:03:02.7]} 3... f5 {[%clk 0:02:58.2]} 4. e3
{[%clk 0:03:01.9]} 4... Nf6 {[%clk 0:02:58.6]} 5. c4 {[%clk 0:03:02]} 5... g6
{[%clk 0:02:58.4]} 6. Nc3 {[%clk 0:03:00]} 6... Bg7 {[%clk 0:02:58.6]} 7. Be2
{[%clk 0:03:00]} 7... O-O {[%clk 0:02:59.2]} 8. d4 {[%clk 0:02:58]} 8... Nc6
{[%clk 0:02:58.5]} 9. dxe5 {[%clk 0:02:53.2]} 9... dxe5 {[%clk 0:02:55.9]} 10.
Qxd8 {[%clk 0:02:51.1]} 10... Rxd8 {[%clk 0:02:56.8]} 11. c5 {[%clk 0:02:41.9]}
11... e4 {[%clk 0:02:54.6]} 12. Nd2 {[%clk 0:02:27.3]} 12... Nd7 {[%clk
0:02:36.2]} 13. Na4 {[%clk 0:01:32.2]} 13... Bxb2 {[%clk 0:02:37.1]} 14. Nxb2
{[%clk 0:01:32.9]} 14... Nxc5 {[%clk 0:02:37.6]} 15. O-O-O {[%clk 0:01:28.6]}
15... Be6 {[%clk 0:02:29]} 16. Kc2 {[%clk 0:01:28.9]} 16... Nb4+ {[%clk
0:02:24.1]} 17. Kb1 {[%clk 0:01:29]} 17... Rd7 {[%clk 0:02:09.1]} 18. Ndc4
{[%clk 0:01:06.1]} 18... Rad8 {[%clk 0:02:01.8]} 19. Rxd7 {[%clk 0:01:04.6]}
19... Rxd7 {[%clk 0:02:02.7]} 20. a3 {[%clk 0:01:04.3]} 20... Nbd3 {[%clk
0:01:52.4]} 21. b4 {[%clk 0:01:04.6]} 21... Nxf2 {[%clk 0:01:37.2]} 22. Rc1
{[%clk 0:00:49.4]} 22... Ncd3 {[%clk 0:01:04.2]} 23. Rc2 {[%clk 0:00:49.7]}
23... c6 {[%clk 0:01:00]} 24. Na5 {[%clk 0:00:45.4]} 24... Nxb2 {[%clk
0:00:56.8]} 25. Kxb2 {[%clk 0:00:46.3]} 25... Kf7 {[%clk 0:00:49.4]} 26. Kc3
{[%clk 0:00:45]} 26... Nd3 {[%clk 0:00:46.3]} 27. Rd2 {[%clk 0:00:42.8]} 27...
b6 {[%clk 0:00:25.7]} 28. Nxc6 {[%clk 0:00:40.7]} 28... Rc7 {[%clk 0:00:26]} 29.
b5 {[%clk 0:00:40.5]} 29... Ne5 {[%clk 0:00:26.3]} 30. Rd6 {[%clk 0:00:36.3]}
30... Bd7 {[%clk 0:00:26.6]} 31. Bc4+ {[%clk 0:00:29.8]} 31... Ke8 {[%clk
0:00:13.7]} 32. Bd5 {[%clk 0:00:29.3]} 32... Bxc6 {[%clk 0:00:12.6]} 33. bxc6
{[%clk 0:00:23.3]} 33... Nf7 {[%clk 0:00:11]} 34. Rd7 {[%clk 0:00:20.2]} 34...
Rxd7 {[%clk 0:00:03.9]} 35. cxd7+ {[%clk 0:00:20.5]} 35... Kxd7 {[%clk
0:00:03.2]} 36. Bxf7 {[%clk 0:00:20.6]} 36... g5 {[%clk 0:00:03.6]} 37. Kd4
{[%clk 0:00:19.5]} 37... Ke7 {[%clk 0:00:03.2]} 38. Bg8 {[%clk 0:00:16.5]} 38...
h5 {[%clk 0:00:03.5]} 39. Ke5 {[%clk 0:00:16.5]} 39... f4 {[%clk 0:00:03.2]} 40.
exf4 {[%clk 0:00:16.6]} 40... e3 {[%clk 0:00:04.1]} 41. Bc4 {[%clk 0:00:16.2]}
41... gxf4 {[%clk 0:00:03.8]} 42. Kxf4 {[%clk 0:00:16.5]} 42... Kd6 {[%clk
0:00:04.3]} 43. Kxe3 {[%clk 0:00:16.6]} 43... Kc5 {[%clk 0:00:05.2]} 44. Bd3
{[%clk 0:00:14.4]} 44... b5 {[%clk 0:00:05.3]} 45. g3 {[%clk 0:00:13.2]} 45...
a5 {[%clk 0:00:05.1]} 46. Be2 {[%clk 0:00:13]} 46... h4 {[%clk 0:00:04.9]} 47.
gxh4 {[%clk 0:00:12.8]} 47... b4 {[%clk 0:00:05.5]} 48. axb4+ {[%clk 0:00:10.6]}
48... axb4 {[%clk 0:00:06.2]} 49. Bd1 {[%clk 0:00:10.5]} 49... Kd6 {[%clk
0:00:06.5]} 50. Bb3 {[%clk 0:00:08.7]} 50... Ke7 {[%clk 0:00:06.9]} 51. Kf4
{[%clk 0:00:09.2]} 51... Kf8 {[%clk 0:00:07.5]} 52. Kg5 {[%clk 0:00:09.8]} 52...
Kg7 {[%clk 0:00:08.2]} 53. Kh5 {[%clk 0:00:09.8]} 53... Kh8 {[%clk 0:00:09.1]}
54. Kg5 {[%clk 0:00:07.2]} 54... Kh7 {[%clk 0:00:10]} 55. h5 {[%clk 0:00:06.6]}
55... Kh8 {[%clk 0:00:10.9]} 56. Kg4 {[%clk 0:00:04.6]} 56... Kh7 {[%clk
0:00:11.8]} 57. Kh4 {[%clk 0:00:05.4]} 57... Kh8 {[%clk 0:00:12.7]} 58. Kg3
{[%clk 0:00:05.6]} 58... Kh7 {[%clk 0:00:13.6]} 59. Kf4 {[%clk 0:00:06.3]} 59...
Kh8 {[%clk 0:00:14.5]} 60. Kg5 {[%clk 0:00:07]} 60... Kh7 {[%clk 0:00:15.4]} 61.
h6 {[%clk 0:00:07.2]} 61... Kh8 {[%clk 0:00:16.3]} 62. Kh5 {[%clk 0:00:01.6]}
62... Kh7 {[%clk 0:00:17.2]} 63. Kg5 {[%clk 0:00:02.2]} 63... Kh8 {[%clk
0:00:18.1]} 64. Kg4 {[%clk 0:00:02.4]} 64... Kh7 {[%clk 0:00:19]} 65. Kh5 {[%clk
0:00:03]} 65... Kh8 {[%clk 0:00:19.9]} 66. h3 {[%clk 0:00:03.2]} 66... Kh7
{[%clk 0:00:20.8]} 67. h4 {[%clk 0:00:03.3]} 67... Kh8 {[%clk 0:00:21.7]} 68.
Kg5 {[%clk 0:00:03.8]} 68... Kh7 {[%clk 0:00:22.6]} 69. Kg4 {[%clk 0:00:04.5]}
69... Kh8 {[%clk 0:00:23.5]} 70. Kh5 {[%clk 0:00:05.1]} 70... Kh7 {[%clk
0:00:24.4]} 71. Bc2+ {[%clk 0:00:03.4]} 71... Kh8 {[%clk 0:00:25.3]} 72. Bb1
{[%clk 0:00:03.5]} 72... Kg8 {[%clk 0:00:25.2]} 73. Kg6 {[%clk 0:00:03.7]} 73...
Kh8 {[%clk 0:00:26.1]} 74. Kf6 {[%clk 0:00:03.6]} 74... Kg8 {[%clk 0:00:26.6]}
75. Kg5 {[%clk 0:00:04.5]} 75... Kh8 {[%clk 0:00:27.2]} 76. Kg4 {[%clk
0:00:05.4]} 76... Kg8 {[%clk 0:00:27.8]} 77. Kf4 {[%clk 0:00:06.3]} 77... Kh8
{[%clk 0:00:28.5]} 78. Kg5 {[%clk 0:00:06.9]} 78... Kg8 {[%clk 0:00:29.1]} 79.
Kh5 {[%clk 0:00:07.8]} 79... Kh8 {[%clk 0:00:29.7]} 80. Kg6 {[%clk 0:00:08.7]}
80... Kg8 {[%clk 0:00:30.4]} 81. Kf6 {[%clk 0:00:09.6]} 81... Kh8 {[%clk
0:00:31]} 82. Ke6 {[%clk 0:00:10.5]} 82... Kg8 {[%clk 0:00:31.6]} 83. Kd5 {[%clk
0:00:10.9]} 83... Kh8 {[%clk 0:00:32.2]} 84. Kc4 {[%clk 0:00:11.8]} 84... Kg8
{[%clk 0:00:32.8]} 85. Kb3 {[%clk 0:00:12.7]} 85... Kh8 {[%clk 0:00:33.4]} 86.
Bc2 {[%clk 0:00:13.2]} 86... Kg8 {[%clk 0:00:34]} 87. Bd3 {[%clk 0:00:13.5]}
87... Kh8 {[%clk 0:00:34.6]} 88. Be4 {[%clk 0:00:14.4]} 88... Kg8 {[%clk
0:00:35.3]} 89. Bf5 {[%clk 0:00:15.3]} 89... Kh8 {[%clk 0:00:36]} 90. Bg6 {[%clk
0:00:16.2]} 90... Kg8 {[%clk 0:00:36.4]} 91. Bf5 {[%clk 0:00:16.1]} 91... Kh8
{[%clk 0:00:37]} 92. Be6 {[%clk 0:00:09.6]} 92... Kh7 {[%clk 0:00:36.9]} 93.
Bf5+ {[%clk 0:00:09.1]} 93... Kxh6 {[%clk 0:00:36.9]} 94. Bg4 {[%clk 0:00:08.7]}
94... Kg7 {[%clk 0:00:37.3]} 95. Kxb4 {[%clk 0:00:07.9]} 95... Kh8 {[%clk
0:00:38.2]} 96. h5 {[%clk 0:00:08.3]} 96... Kg7 {[%clk 0:00:38.8]} 97. h6+
{[%clk 0:00:09.2]} 97... Kh8 {[%clk 0:00:39.7]} 98. h7 {[%clk 0:00:08.9]} 98...
Kxh7 {[%clk 0:00:40.2]} 1/2-1/2

[Event "Early-Titled-Tuesday-Blitz-October-10-2023"]
[Site "Chess.com"]
[Date "2023.10.10"]
[Round "4"]
[White "KejJaj"]
[Black "Javylavilla"]
[Result "0-1"]
[WhiteElo "2183"]
[BlackElo "2402"]
[TimeControl "180+1"]
[EndTime "8:33:04 PDT"]
[Termination "Javylavilla won by resignation"]

1. d4 {[%clk 0:03:00.9]} 1... Nf6 {[%clk 0:02:59.3]} 2. Bf4 {[%clk 0:03:01.4]}
2... d5 {[%clk 0:02:58.4]} 3. e3 {[%clk 0:03:01.2]} 3... c5 {[%clk 0:02:58.5]}
4. Nd2 {[%clk 0:02:57.2]} 4... Nc6 {[%clk 0:02:58.3]} 5. c3 {[%clk 0:02:56.2]}
5... Qb6 {[%clk 0:02:57.4]} 6. Qb3 {[%clk 0:02:54.6]} 6... c4 {[%clk 0:02:56.6]}
7. Qc2 {[%clk 0:02:53.9]} 7... e6 {[%clk 0:02:52]} 8. e4 {[%clk 0:02:52]} 8...
Qa5 {[%clk 0:02:40.2]} 9. e5 {[%clk 0:02:45.9]} 9... Nd7 {[%clk 0:02:39.6]} 10.
Be2 {[%clk 0:02:35.9]} 10... b5 {[%clk 0:02:39]} 11. a3 {[%clk 0:02:35.1]} 11...
Nb6 {[%clk 0:02:36.7]} 12. Rb1 {[%clk 0:02:11.6]} 12... Na4 {[%clk 0:02:34.1]}
13. Nh3 {[%clk 0:02:07]} 13... Bxa3 {[%clk 0:02:21.9]} 14. bxa3 {[%clk
0:02:02.8]} 14... Nxc3 {[%clk 0:02:21.9]} 15. Rc1 {[%clk 0:02:01.2]} 15... Nxe2
{[%clk 0:02:20.4]} 16. Kxe2 {[%clk 0:02:02.1]} 16... Nxd4+ {[%clk 0:02:20.4]}
0-1

[Event "Early-Titled-Tuesday-Blitz-October-10-2023"]
[Site "Chess.com"]
[Date "2023.10.10"]
[Round "4"]
[White "SirStrateg"]
[Black "MikaelyanArman"]
[Result "0-1"]
[WhiteElo "2580"]
[BlackElo "2824"]
[TimeControl "180+1"]
[EndTime "8:33:07 PDT"]
[Termination "MikaelyanArman won by resignation"]

1. d4 {[%clk 0:02:59.6]} 1... Nf6 {[%clk 0:02:57]} 2. Bf4 {[%clk 0:02:59.1]}
2... g6 {[%clk 0:02:56.6]} 3. e3 {[%clk 0:02:58.6]} 3... Bg7 {[%clk 0:02:57.1]}
4. h3 {[%clk 0:02:59.1]} 4... O-O {[%clk 0:02:57.4]} 5. Nf3 {[%clk 0:02:59.7]}
5... c5 {[%clk 0:02:57.2]} 6. c3 {[%clk 0:03:00]} 6... cxd4 {[%clk 0:02:56.9]}
7. cxd4 {[%clk 0:03:00.2]} 7... Qb6 {[%clk 0:02:56.1]} 8. Qd2 {[%clk 0:02:49.4]}
8... Ne4 {[%clk 0:02:55]} 9. Qc2 {[%clk 0:02:49.9]} 9... Nc6 {[%clk 0:02:50.4]}
10. Nc3 {[%clk 0:02:50.3]} 10... d5 {[%clk 0:02:32.8]} 11. Bd3 {[%clk
0:02:31.2]} 11... Nb4 {[%clk 0:02:30.2]} 12. Qb1 {[%clk 0:02:25.7]} 12... Bf5
{[%clk 0:02:10.8]} 13. Bxe4 {[%clk 0:02:21.2]} 13... dxe4 {[%clk 0:02:10.7]} 14.
Nd2 {[%clk 0:02:13]} 14... Nd3+ {[%clk 0:02:10.8]} 15. Kf1 {[%clk 0:02:13.6]}
15... Nxf4 {[%clk 0:02:07.8]} 0-1

[Event "Early-Titled-Tuesday-Blitz-October-10-2023"]
[Site "Chess.com"]
[Date "2023.10.10"]
[Round "4"]
[White "Rsnr"]
[Black "FREDERICKtheMATE"]
[Result "1-0"]
[WhiteElo "2844"]
[BlackElo "2587"]
[TimeControl "180+1"]
[EndTime "8:33:22 PDT"]
[Termination "Rsnr won by resignation"]

1. d4 {[%clk 0:03:00.9]} 1... Nf6 {[%clk 0:02:59.6]} 2. c4 {[%clk 0:03:01.2]}
2... e6 {[%clk 0:02:59.9]} 3. Nf3 {[%clk 0:03:01.5]} 3... d5 {[%clk 0:02:59.7]}
4. g3 {[%clk 0:03:01.8]} 4... dxc4 {[%clk 0:02:59.3]} 5. Bg2 {[%clk 0:03:02]}
5... c5 {[%clk 0:02:59.8]} 6. O-O {[%clk 0:03:01.8]} 6... Nc6 {[%clk 0:03:00.2]}
7. Ne5 {[%clk 0:03:02.4]} 7... Nxe5 {[%clk 0:02:56.8]} 8. dxe5 {[%clk
0:03:03.3]} 8... Qxd1 {[%clk 0:02:57.2]} 9. Rxd1 {[%clk 0:03:03.9]} 9... Nd7
{[%clk 0:02:57.1]} 10. Na3 {[%clk 0:03:04.3]} 10... Nxe5 {[%clk 0:02:53.3]} 11.
Bf4 {[%clk 0:03:04.1]} 11... Nc6 {[%clk 0:02:52]} 12. Nb5 {[%clk 0:03:03.5]}
12... Ke7 {[%clk 0:02:50.9]} 13. Bxc6 {[%clk 0:03:00.3]} 13... bxc6 {[%clk
0:02:50.2]} 14. Nc7 {[%clk 0:03:01.2]} 14... Rb8 {[%clk 0:02:49.5]} 15. Bd6+
{[%clk 0:03:01.9]} 15... Kd7 {[%clk 0:02:43.4]} 16. Bxf8+ {[%clk 0:03:02.2]}
16... Kxc7 {[%clk 0:02:43.7]} 17. Bd6+ {[%clk 0:03:03]} 17... Kb7 {[%clk
0:02:44.2]} 18. Bxb8 {[%clk 0:03:03.9]} 18... Kxb8 {[%clk 0:02:44.9]} 19. Rac1
{[%clk 0:03:03.7]} 19... Kc7 {[%clk 0:02:41.1]} 20. Rxc4 {[%clk 0:03:03.4]}
20... Ba6 {[%clk 0:02:41.6]} 21. Ra4 {[%clk 0:02:57.9]} 21... Bxe2 {[%clk
0:02:39.9]} 22. Rxa7+ {[%clk 0:02:58.1]} 22... Kb6 {[%clk 0:02:38.8]} 23. Rdd7
{[%clk 0:02:58.3]} 23... c4 {[%clk 0:02:36.2]} 24. f4 {[%clk 0:02:58.5]} 24...
Bh5 {[%clk 0:02:35]} 25. Kf2 {[%clk 0:02:58.1]} 25... Bg6 {[%clk 0:02:34.4]} 26.
Ke3 {[%clk 0:02:58.4]} 26... Rb8 {[%clk 0:02:34.8]} 27. Kd4 {[%clk 0:02:57.9]}
27... Kb5 {[%clk 0:02:27.3]} 28. Rdb7+ {[%clk 0:02:48.3]} 28... Rxb7 {[%clk
0:02:27.4]} 29. Rxb7+ {[%clk 0:02:49.2]} 29... Ka6 {[%clk 0:02:28]} 30. Rb4
{[%clk 0:02:46]} 30... Bd3 {[%clk 0:02:25.9]} 31. Kc5 {[%clk 0:02:46.1]} 31...
f6 {[%clk 0:02:19.9]} 32. Kxc6 {[%clk 0:02:43.8]} 32... Ka5 {[%clk 0:02:18.4]}
33. Rb5+ {[%clk 0:02:43.5]} 33... Ka4 {[%clk 0:02:17.1]} 34. Kc5 {[%clk
0:02:35.5]} 34... e5 {[%clk 0:02:15.1]} 35. Rb7 {[%clk 0:02:31.6]} 1-0

[Event "Early-Titled-Tuesday-Blitz-October-10-2023"]
[Site "Chess.com"]
[Date "2023.10.10"]
[Round "4"]
[White "JoliyRoger"]
[Black "SharapovEvgeny"]
[Result "1/2-1/2"]
[WhiteElo "2472"]
[BlackElo "2611"]
[TimeControl "180+1"]
[EndTime "8:33:31 PDT"]
[Termination "Game drawn by agreement"]

1. Nf3 {[%clk 0:03:00.9]} 1... c5 {[%clk 0:02:59.7]} 2. c4 {[%clk 0:02:57.5]}
2... Nc6 {[%clk 0:02:59.5]} 3. Nc3 {[%clk 0:02:55.6]} 3... e5 {[%clk 0:02:58.7]}
4. e3 {[%clk 0:02:55.8]} 4... Nf6 {[%clk 0:02:58.4]} 5. d4 {[%clk 0:02:54.3]}
5... cxd4 {[%clk 0:02:58.5]} 6. exd4 {[%clk 0:02:55]} 6... e4 {[%clk 0:02:59.1]}
7. Ne5 {[%clk 0:02:55.6]} 7... Bb4 {[%clk 0:02:58.7]} 8. Be2 {[%clk 0:02:47.7]}
8... Qa5 {[%clk 0:02:58]} 9. Nxc6 {[%clk 0:02:47.5]} 9... dxc6 {[%clk
0:02:58.1]} 10. Bd2 {[%clk 0:02:46.4]} 10... O-O {[%clk 0:02:57.9]} 11. O-O
{[%clk 0:02:46.4]} 11... Re8 {[%clk 0:02:56.9]} 12. a3 {[%clk 0:02:47]} 12...
Bxc3 {[%clk 0:02:56.9]} 13. Bxc3 {[%clk 0:02:47.7]} 13... Qg5 {[%clk 0:02:56.5]}
14. f4 {[%clk 0:02:33.1]} 14... exf3 {[%clk 0:02:54.6]} 15. Bxf3 {[%clk
0:02:33.4]} 15... Bg4 {[%clk 0:02:51.4]} 16. d5 {[%clk 0:02:09.1]} 16... Bxf3
{[%clk 0:02:42.4]} 17. Qxf3 {[%clk 0:02:08.6]} 17... cxd5 {[%clk 0:02:39.8]} 18.
Bxf6 {[%clk 0:02:08.8]} 18... Qxf6 {[%clk 0:02:37]} 19. Qxf6 {[%clk 0:02:07.8]}
19... gxf6 {[%clk 0:02:37]} 20. cxd5 {[%clk 0:02:08.5]} 20... Rad8 {[%clk
0:02:35.7]} 21. Rad1 {[%clk 0:01:51.5]} 21... Rd6 {[%clk 0:02:35.2]} 22. Rf3
{[%clk 0:01:36.8]} 1/2-1/2

[Event "Early-Titled-Tuesday-Blitz-October-10-2023"]
[Site "Chess.com"]
[Date "2023.10.10"]
[Round "4"]
[White "combidharma"]
[Black "Vladimir_Zakhartsov"]
[Result "0-1"]
[WhiteElo "2658"]
[BlackElo "2844"]
[TimeControl "180+1"]
[EndTime "8:33:47 PDT"]
[Termination "Vladimir_Zakhartsov won by resignation"]

1. d4 {[%clk 0:02:58]} 1... Nf6 {[%clk 0:02:58.7]} 2. c4 {[%clk 0:02:50.6]} 2...
e6 {[%clk 0:02:57]} 3. g3 {[%clk 0:02:50.9]} 3... c5 {[%clk 0:02:56.3]} 4. Bg2
{[%clk 0:02:42.7]} 4... cxd4 {[%clk 0:02:54.7]} 5. Qxd4 {[%clk 0:02:43.6]} 5...
Nc6 {[%clk 0:02:53.7]} 6. Qd1 {[%clk 0:02:39.8]} 6... Bb4+ {[%clk 0:02:37.4]} 7.
Bd2 {[%clk 0:02:31]} 7... Qb6 {[%clk 0:02:35.9]} 8. Nf3 {[%clk 0:02:24.6]} 8...
Bc5 {[%clk 0:02:21.7]} 9. O-O {[%clk 0:02:20.3]} 9... Ne4 {[%clk 0:02:16.6]} 10.
Be1 {[%clk 0:01:57.8]} 10... Qxb2 {[%clk 0:02:14.4]} 11. Nfd2 {[%clk 0:01:56.6]}
11... Nxf2 {[%clk 0:01:53]} 12. Bxf2 {[%clk 0:01:47.8]} 12... Bxf2+ {[%clk
0:01:52.1]} 13. Rxf2 {[%clk 0:01:48.7]} 13... Qxa1 {[%clk 0:01:52.2]} 0-1

[Event "Early-Titled-Tuesday-Blitz-October-10-2023"]
[Site "Chess.com"]
[Date "2023.10.10"]
[Round "4"]
[White "vladgoncharov"]
[Black "CFN_Good_Evening"]
[Result "1-0"]
[WhiteElo "2517"]
[BlackElo "1627"]
[TimeControl "180+1"]
[EndTime "8:33:53 PDT"]
[Termination "vladgoncharov won by resignation"]

1. d4 {[%clk 0:03:00.9]} 1... Nf6 {[%clk 0:02:58.4]} 2. c4 {[%clk 0:02:59.9]}
2... e6 {[%clk 0:02:58.5]} 3. Nf3 {[%clk 0:03:00.2]} 3... d5 {[%clk 0:02:57.2]}
4. Nc3 {[%clk 0:02:59.6]} 4... Be7 {[%clk 0:02:56.3]} 5. Bg5 {[%clk 0:02:59.7]}
5... O-O {[%clk 0:02:52.5]} 6. e3 {[%clk 0:02:59.7]} 6... c6 {[%clk 0:02:53.2]}
7. Rc1 {[%clk 0:02:57.6]} 7... Nbd7 {[%clk 0:02:52.2]} 8. Bd3 {[%clk 0:02:55.4]}
8... dxc4 {[%clk 0:02:40.7]} 9. Bxc4 {[%clk 0:02:54.9]} 9... b5 {[%clk
0:02:41.6]} 10. Bd3 {[%clk 0:02:54.8]} 10... Bb7 {[%clk 0:02:42.5]} 11. O-O
{[%clk 0:02:49.7]} 11... a6 {[%clk 0:02:42.9]} 12. Bxf6 {[%clk 0:02:48]} 12...
Nxf6 {[%clk 0:02:36.3]} 13. Ne4 {[%clk 0:02:47.5]} 13... Qd5 {[%clk 0:02:02.2]}
14. Nxf6+ {[%clk 0:02:43.1]} 14... gxf6 {[%clk 0:02:03.1]} 15. a3 {[%clk
0:02:37]} 15... c5 {[%clk 0:02:00]} 16. dxc5 {[%clk 0:02:36.8]} 16... Rad8
{[%clk 0:01:40.9]} 17. Be2 {[%clk 0:02:28.7]} 17... Bxc5 {[%clk 0:01:35]} 18.
Qxd5 {[%clk 0:02:28.2]} 18... Rxd5 {[%clk 0:01:35.9]} 19. e4 {[%clk 0:02:28.4]}
1-0

[Event "Early-Titled-Tuesday-Blitz-October-10-2023"]
[Site "Chess.com"]
[Date "2023.10.10"]
[Round "4"]
[White "scarabee43"]
[Black "GlavkonVVS"]
[Result "1-0"]
[WhiteElo "2795"]
[BlackElo "2554"]
[TimeControl "180+1"]
[EndTime "8:33:55 PDT"]
[Termination "scarabee43 won by checkmate"]

1. Nf3 {[%clk 0:03:00.9]} 1... Nf6 {[%clk 0:03:00.9]} 2. d4 {[%clk 0:03:00.5]}
2... c5 {[%clk 0:03:01.2]} 3. d5 {[%clk 0:03:00.5]} 3... e6 {[%clk 0:03:01]} 4.
Nc3 {[%clk 0:02:59.1]} 4... exd5 {[%clk 0:03:01.4]} 5. Nxd5 {[%clk 0:02:59.6]}
5... Nxd5 {[%clk 0:03:02.3]} 6. Qxd5 {[%clk 0:02:59.9]} 6... d6 {[%clk
0:03:03.2]} 7. g3 {[%clk 0:02:59.1]} 7... Nc6 {[%clk 0:03:03.5]} 8. Bg2 {[%clk
0:02:59.3]} 8... Be6 {[%clk 0:03:04]} 9. Qd1 {[%clk 0:02:58.3]} 9... Be7 {[%clk
0:03:01.4]} 10. O-O {[%clk 0:02:58.5]} 10... d5 {[%clk 0:03:01.9]} 11. c3 {[%clk
0:02:54.8]} 11... O-O {[%clk 0:03:02]} 12. Bf4 {[%clk 0:02:54.2]} 12... b5
{[%clk 0:03:00.5]} 13. Qc2 {[%clk 0:02:49.9]} 13... a5 {[%clk 0:02:45.4]} 14. h4
{[%clk 0:02:44.6]} 14... h6 {[%clk 0:02:44.9]} 15. Rad1 {[%clk 0:02:43.1]} 15...
Qb6 {[%clk 0:02:44.8]} 16. Rfe1 {[%clk 0:02:34.1]} 16... Rfd8 {[%clk 0:02:44.3]}
17. e4 {[%clk 0:02:33.8]} 17... d4 {[%clk 0:02:42.9]} 18. cxd4 {[%clk
0:02:32.7]} 18... cxd4 {[%clk 0:02:34.8]} 19. a3 {[%clk 0:02:31.8]} 19... Rac8
{[%clk 0:02:34.4]} 20. Qd2 {[%clk 0:02:27.9]} 20... b4 {[%clk 0:02:29.2]} 21.
Bxh6 {[%clk 0:02:20.2]} 21... gxh6 {[%clk 0:02:26.2]} 22. Qxh6 {[%clk
0:02:20.9]} 22... d3 {[%clk 0:01:57.3]} 23. Ng5 {[%clk 0:02:05.1]} 23... Ne5
{[%clk 0:01:44.7]} 24. Qh7+ {[%clk 0:02:04.7]} 24... Kf8 {[%clk 0:01:43.9]} 25.
Qh8# {[%clk 0:02:04.4]} 1-0

[Event "Early-Titled-Tuesday-Blitz-October-10-2023"]
[Site "Chess.com"]
[Date "2023.10.10"]
[Round "4"]
[White "Rutricks"]
[Black "Shuvalov"]
[Result "0-1"]
[WhiteElo "2670"]
[BlackElo "2490"]
[TimeControl "180+1"]
[EndTime "8:34:08 PDT"]
[Termination "Shuvalov won by resignation"]

1. b3 {[%clk 0:03:00.1]} 1... d5 {[%clk 0:02:53.7]} 2. Bb2 {[%clk 0:03:01]} 2...
Nf6 {[%clk 0:02:53.8]} 3. Nf3 {[%clk 0:03:01.8]} 3... Bf5 {[%clk 0:02:53.7]} 4.
e3 {[%clk 0:03:02.7]} 4... e6 {[%clk 0:02:53.9]} 5. Be2 {[%clk 0:03:03.6]} 5...
Be7 {[%clk 0:02:54.2]} 6. O-O {[%clk 0:03:04.5]} 6... O-O {[%clk 0:02:54.4]} 7.
h3 {[%clk 0:03:05.4]} 7... h6 {[%clk 0:02:54.3]} 8. c4 {[%clk 0:03:06]} 8... c6
{[%clk 0:02:54.2]} 9. Nc3 {[%clk 0:03:06.7]} 9... Nbd7 {[%clk 0:02:53.6]} 10.
Rc1 {[%clk 0:03:07.5]} 10... Bh7 {[%clk 0:02:51]} 11. d4 {[%clk 0:03:08]} 11...
Bb4 {[%clk 0:02:47.1]} 12. Na4 {[%clk 0:03:08.2]} 12... Ne4 {[%clk 0:02:44.4]}
13. a3 {[%clk 0:03:08.6]} 13... Bd6 {[%clk 0:02:43.7]} 14. Ne1 {[%clk
0:03:06.2]} 14... Qg5 {[%clk 0:02:35.7]} 15. Nd3 {[%clk 0:03:05.9]} 15... Bf5
{[%clk 0:02:31.5]} 16. Bg4 {[%clk 0:03:06.3]} 16... Bh7 {[%clk 0:02:25.4]} 17.
f4 {[%clk 0:03:06]} 17... Qh4 {[%clk 0:02:23.1]} 18. Qe1 {[%clk 0:03:06]} 18...
Qxe1 {[%clk 0:02:18.8]} 19. Rfxe1 {[%clk 0:03:06.6]} 19... Nd2 {[%clk
0:02:08.4]} 20. cxd5 {[%clk 0:02:54.9]} 20... cxd5 {[%clk 0:01:51.2]} 21. Ndc5
{[%clk 0:02:54]} 21... Bxc5 {[%clk 0:01:46.3]} 22. Nxc5 {[%clk 0:02:54.6]} 22...
Nxc5 {[%clk 0:01:46.2]} 23. Rxc5 {[%clk 0:02:55]} 23... Nxb3 {[%clk 0:01:36.4]}
24. Rb5 {[%clk 0:02:55.4]} 24... Nd2 {[%clk 0:01:36.4]} 25. Bc3 {[%clk
0:02:55.7]} 25... Nc4 {[%clk 0:01:31.4]} 26. Rxb7 {[%clk 0:02:54]} 26... Rfb8
{[%clk 0:01:23.3]} 27. Reb1 {[%clk 0:02:20.3]} 27... Bxb1 {[%clk 0:01:22.5]} 0-1

[Event "Early-Titled-Tuesday-Blitz-October-10-2023"]
[Site "Chess.com"]
[Date "2023.10.10"]
[Round "4"]
[White "DenLaz"]
[Black "amanmuhammethommadov"]
[Result "1-0"]
[WhiteElo "3066"]
[BlackElo "2595"]
[TimeControl "180+1"]
[EndTime "8:34:34 PDT"]
[Termination "DenLaz won by resignation"]

1. d4 {[%clk 0:03:00.9]} 1... Nf6 {[%clk 0:02:59.5]} 2. c4 {[%clk 0:03:01.5]}
2... g6 {[%clk 0:02:59.9]} 3. Nc3 {[%clk 0:03:01.4]} 3... Bg7 {[%clk 0:03:00.3]}
4. e4 {[%clk 0:03:01.3]} 4... O-O {[%clk 0:03:00.8]} 5. h3 {[%clk 0:03:01.4]}
5... d6 {[%clk 0:02:59.6]} 6. Be3 {[%clk 0:03:01.3]} 6... c5 {[%clk 0:02:57.8]}
7. d5 {[%clk 0:02:58.7]} 7... b5 {[%clk 0:02:56.5]} 8. cxb5 {[%clk 0:02:56.3]}
8... a6 {[%clk 0:02:55.8]} 9. a4 {[%clk 0:02:56.3]} 9... axb5 {[%clk 0:02:55.4]}
10. Bxb5 {[%clk 0:02:55.2]} 10... Ba6 {[%clk 0:02:55.6]} 11. Nf3 {[%clk
0:02:36.6]} 11... Qa5 {[%clk 0:02:54]} 12. O-O {[%clk 0:02:34.2]} 12... Qb4
{[%clk 0:02:46.7]} 13. Qc2 {[%clk 0:02:33.1]} 13... Nbd7 {[%clk 0:02:41.6]} 14.
Bd2 {[%clk 0:02:16.1]} 14... Nb6 {[%clk 0:02:22.9]} 15. Rfe1 {[%clk 0:01:46.6]}
15... Nc4 {[%clk 0:02:05.7]} 16. Na2 {[%clk 0:01:40.8]} 16... Qxb2 {[%clk
0:01:54.6]} 17. Qxc4 {[%clk 0:01:38.4]} 17... Bxb5 {[%clk 0:01:52.7]} 18. axb5
{[%clk 0:01:38.3]} 18... Qxb5 {[%clk 0:01:53.1]} 19. Qxb5 {[%clk 0:01:37.2]} 1-0

[Event "Early-Titled-Tuesday-Blitz-October-10-2023"]
[Site "Chess.com"]
[Date "2023.10.10"]
[Round "4"]
[White "pirulillo"]
[Black "Mr_Lion22"]
[Result "0-1"]
[WhiteElo "2344"]
[BlackElo "2519"]
[TimeControl "180+1"]
[EndTime "8:34:40 PDT"]
[Termination "Mr_Lion22 won on time"]

1. e4 {[%clk 0:01:09.9]} 1... c5 {[%clk 0:02:51.5]} 2. Nf3 {[%clk 0:01:09.5]}
2... d6 {[%clk 0:02:51.7]} 3. d4 {[%clk 0:01:09.5]} 3... cxd4 {[%clk 0:02:52.6]}
4. Nxd4 {[%clk 0:01:09.7]} 4... Nf6 {[%clk 0:02:53.2]} 5. Nc3 {[%clk 0:01:08.2]}
5... a6 {[%clk 0:02:53.7]} 6. Be2 {[%clk 0:01:06.3]} 6... e5 {[%clk 0:02:53.7]}
7. Nb3 {[%clk 0:01:05.2]} 7... Be7 {[%clk 0:02:54.3]} 8. Be3 {[%clk 0:01:05]}
8... Be6 {[%clk 0:02:52.9]} 9. Nd5 {[%clk 0:01:04.5]} 9... Bxd5 {[%clk
0:02:51.3]} 10. exd5 {[%clk 0:00:59.4]} 10... Nbd7 {[%clk 0:02:51.7]} 11. Qd2
{[%clk 0:00:44.9]} 11... b5 {[%clk 0:02:49.7]} 12. Na5 {[%clk 0:00:26.3]} 12...
Qc7 {[%clk 0:02:46.3]} 13. Nc6 {[%clk 0:00:11]} 13... Rc8 {[%clk 0:02:46.4]} 14.
O-O {[%clk 0:00:10.7]} 14... Bd8 {[%clk 0:02:45.6]} 15. f3 {[%clk 0:00:09]}
15... O-O {[%clk 0:02:45.7]} 0-1